Workbook

Sheet Instructions
A2: Check Sheet, Bar Chart, and Pareto Chart Instructions
A3: Data input | C3: Enter the type of error in the error type column and use the buttons to increase or decrease the count as needed. You can also directly enter a number into the count field if that is more convenient.
A4: Formatting the graphs | C4: To sort the errors types by frequency and format the graphs, click on the button below the check sheet labeled "Delete rows and format chart". Please note that this cannot be undone, so only click the button when you have entered all the data required for that tab.
A5: Including after data | C5: If you want to compare data before and after you've made an improvement, you will need to fill out the 'Check Sheet - Before' and 'Check Sheet - After' tabs. Once you've included both sets of data, click 'Delete rows and format chart' on the 'Check Sheet - Comparison' tab to view a bar chart comparing the before and after data.
A9: Adding rows | C9: If you need to add additional error types, select the bottom row and copy and paste it to the row below. Right click on the arrow button control and select "Format control". Click the arrow to the right of the "Cell link" field and then select the cell to the left of the control in the count column and click "Ok". Lastly, click in the white space somewhere in the center of the chart. When the colored boxes show up, drag them over the new column to include them in the chart
A10: Selecting data | C10: To select or deselect data, click the white space in the center of the bar chart and drag the colored boxes that appear on the left over the desired data

Sheet Check Sheet - Before
B2: [Insert title] | H2: =$B$2 -> [Insert title] | M2: =$B$2 -> [Insert title]
B4: Error Type | C4: Count | E4: % of Total | F4: Cumulative
C5: 0 | E5: =IF(SUM($C$5:$C$15)<1,0,C5/SUM($C$5:$C$15)) -> 0 | F5: =IF(SUM($C$5:$C$15)<1,0,C5/SUM($C$5:$C$15)) -> 0
C6: 0 | E6: 0 | F6: =SUM($E$5:E6) -> 0
C7: 0 | E7: 0 | F7: =SUM($E$5:E7) -> 0
C8: 0 | E8: 0 | F8: =SUM($E$5:E8) -> 0
C9: 0 | E9: 0 | F9: =SUM($E$5:E9) -> 0
C10: 0 | E10: 0 | F10: =SUM($E$5:E10) -> 0
C11: 0 | E11: 0 | F11: =SUM($E$5:E11) -> 0
C12: 0 | E12: 0 | F12: =SUM($E$5:E12) -> 0
C13: 0 | E13: =IF(SUM($C$5:$C$15)<1,0,C13/SUM($C$5:$C$15)) -> 0 | F13: =SUM($E$5:E13) -> 0
C14: 0 | E14: 0 | F14: =SUM($E$5:E14) -> 0
C15: 0 | E15: =IF(SUM($C$5:$C$15)<1,0,C15/SUM($C$5:$C$15)) -> 0 | F15: =SUM($E$5:E15) -> 0

Sheet Check Sheet - After
B2: ='Check Sheet - Before'!B2:F2 -> [Insert title] | H2: =B2 -> [Insert title] | M2: =H2 -> [Insert title]
B4: Error Type | C4: Count | E4: % of Total | F4: Cumulative
B5: =IF(ISERROR('Check Sheet - Before'!B5),"",IF(ISBLANK('Check Sheet - Before'!B5),"",'Check Sheet - Before'!B5)) ->  | C5: 0 | E5: =IF(SUM($C$5:$C$15)<1,0,C5/SUM($C$5:$C$15)) -> 0 | F5: =IF(SUM($C$5:$C$15)<1,0,C5/SUM($C$5:$C$15)) -> 0
B6: =IF(ISERROR('Check Sheet - Before'!B6),"",IF(ISBLANK('Check Sheet - Before'!B6),"",'Check Sheet - Before'!B6)) ->  | C6: 0 | E6: 0 | F6: =SUM($E$5:E6) -> 0
B7: =IF(ISERROR('Check Sheet - Before'!B8),"",IF(ISBLANK('Check Sheet - Before'!B8),"",'Check Sheet - Before'!B8)) ->  | C7: 0 | E7: 0 | F7: =SUM($E$5:E7) -> 0
B8: =IF(ISERROR('Check Sheet - Before'!B9),"",IF(ISBLANK('Check Sheet - Before'!B9),"",'Check Sheet - Before'!B9)) ->  | C8: 0 | E8: 0 | F8: =SUM($E$5:E8) -> 0
B9: =IF(ISERROR('Check Sheet - Before'!B7),"",IF(ISBLANK('Check Sheet - Before'!B7),"",'Check Sheet - Before'!B7)) ->  | C9: 0 | E9: 0 | F9: =SUM($E$5:E9) -> 0
B10: =IF(ISERROR('Check Sheet - Before'!B10),"",IF(ISBLANK('Check Sheet - Before'!B10),"",'Check Sheet - Before'!B10)) ->  | C10: 0 | E10: 0 | F10: =SUM($E$5:E10) -> 0
B11: =IF(ISERROR('Check Sheet - Before'!B11),"",IF(ISBLANK('Check Sheet - Before'!B11),"",'Check Sheet - Before'!B11)) ->  | C11: 0 | E11: 0 | F11: =SUM($E$5:E11) -> 0
B12: =IF(ISERROR('Check Sheet - Before'!B13),"",IF(ISBLANK('Check Sheet - Before'!B13),"",'Check Sheet - Before'!B13)) ->  | C12: 0 | E12: 0 | F12: =SUM($E$5:E12) -> 0
B13: =IF(ISERROR('Check Sheet - Before'!B14),"",IF(ISBLANK('Check Sheet - Before'!B14),"",'Check Sheet - Before'!B14)) ->  | C13: 0 | E13: 0 | F13: =SUM($E$5:E13) -> 0
B14: =IF(ISERROR('Check Sheet - Before'!B15),"",IF(ISBLANK('Check Sheet - Before'!B15),"",'Check Sheet - Before'!B15)) ->  | C14: 0 | E14: 0 | F14: =SUM($E$5:E14) -> 0
B15: =IF(ISERROR('Check Sheet - Before'!B12),"",IF(ISBLANK('Check Sheet - Before'!B12),"",'Check Sheet - Before'!B12)) ->  | C15: 0 | E15: 0 | F15: =SUM($E$5:E15) -> 0

Sheet Check Sheet - Comparison
B2: ='Check Sheet - Before'!B2:F2 -> [Insert title] | H2: =B2 -> [Insert title]
B4: Error Type | C4: Before | D4: After | E4: % Improvement
B5: =IF(ISERROR('Check Sheet - Before'!B5), "", IF(ISBLANK('Check Sheet - Before'!B5), "", 'Check Sheet - Before'!B5)) ->  | C5: =_xlfn.IFNA(IF(ISERROR('Check Sheet - Before'!C5), "", IF(ISBLANK('Check Sheet - Before'!C5), "", 'Check Sheet - Before'!C5)),"") -> 0 | D5: =_xlfn.IFNA(IF(ISERR(VLOOKUP(B5,'Check Sheet - After'!$B$5:$C$15, 2, FALSE)),,VLOOKUP(B5,'Check Sheet - After'!$B$5:$C$15, 2, FALSE)),"") -> 0 | E5: =_xlfn.IFNA(IFERROR((C5-D5)/C5,""),"") -> 
B6: =IF(ISERROR('Check Sheet - Before'!B6), "", IF(ISBLANK('Check Sheet - Before'!B6), "", 'Check Sheet - Before'!B6)) ->  | C6: =_xlfn.IFNA(IF(ISERROR('Check Sheet - Before'!C6), "", IF(ISBLANK('Check Sheet - Before'!C6), "", 'Check Sheet - Before'!C6)),"") -> 0 | D6: =_xlfn.IFNA(IF(ISERR(VLOOKUP(B6,'Check Sheet - After'!$B$5:$C$15, 2, FALSE)),,VLOOKUP(B6,'Check Sheet - After'!$B$5:$C$15, 2, FALSE)),"") -> 0 | E6: =_xlfn.IFNA(IFERROR((C6-D6)/C6,""),"") -> 
B7: =IF(ISERROR('Check Sheet - Before'!B7), "", IF(ISBLANK('Check Sheet - Before'!B7), "", 'Check Sheet - Before'!B7)) ->  | C7: =_xlfn.IFNA(IF(ISERROR('Check Sheet - Before'!C7), "", IF(ISBLANK('Check Sheet - Before'!C7), "", 'Check Sheet - Before'!C7)),"") -> 0 | D7: =_xlfn.IFNA(IF(ISERR(VLOOKUP(B7,'Check Sheet - After'!$B$5:$C$15, 2, FALSE)),,VLOOKUP(B7,'Check Sheet - After'!$B$5:$C$15, 2, FALSE)),"") -> 0
B8: =IF(ISERROR('Check Sheet - Before'!B8), "", IF(ISBLANK('Check Sheet - Before'!B8), "", 'Check Sheet - Before'!B8)) ->  | C8: =_xlfn.IFNA(IF(ISERROR('Check Sheet - Before'!C8), "", IF(ISBLANK('Check Sheet - Before'!C8), "", 'Check Sheet - Before'!C8)),"") -> 0 | D8: =_xlfn.IFNA(IF(ISERR(VLOOKUP(B8,'Check Sheet - After'!$B$5:$C$15, 2, FALSE)),,VLOOKUP(B8,'Check Sheet - After'!$B$5:$C$15, 2, FALSE)),"") -> 0
B9: =IF(ISERROR('Check Sheet - Before'!B9), "", IF(ISBLANK('Check Sheet - Before'!B9), "", 'Check Sheet - Before'!B9)) ->  | C9: =_xlfn.IFNA(IF(ISERROR('Check Sheet - Before'!C9), "", IF(ISBLANK('Check Sheet - Before'!C9), "", 'Check Sheet - Before'!C9)),"") -> 0 | D9: =_xlfn.IFNA(IF(ISERR(VLOOKUP(B9,'Check Sheet - After'!$B$5:$C$15, 2, FALSE)),,VLOOKUP(B9,'Check Sheet - After'!$B$5:$C$15, 2, FALSE)),"") -> 0
B10: =IF(ISERROR('Check Sheet - Before'!B10), "", IF(ISBLANK('Check Sheet - Before'!B10), "", 'Check Sheet - Before'!B10)) ->  | C10: =_xlfn.IFNA(IF(ISERROR('Check Sheet - Before'!C10), "", IF(ISBLANK('Check Sheet - Before'!C10), "", 'Check Sheet - Before'!C10)),"") -> 0 | D10: =_xlfn.IFNA(IF(ISERR(VLOOKUP(B10,'Check Sheet - After'!$B$5:$C$15, 2, FALSE)),,VLOOKUP(B10,'Check Sheet - After'!$B$5:$C$15, 2, FALSE)),"") -> 0
B11: =IF(ISERROR('Check Sheet - Before'!B11), "", IF(ISBLANK('Check Sheet - Before'!B11), "", 'Check Sheet - Before'!B11)) ->  | C11: =_xlfn.IFNA(IF(ISERROR('Check Sheet - Before'!C11), "", IF(ISBLANK('Check Sheet - Before'!C11), "", 'Check Sheet - Before'!C11)),"") -> 0 | D11: =_xlfn.IFNA(IF(ISERR(VLOOKUP(B11,'Check Sheet - After'!$B$5:$C$15, 2, FALSE)),,VLOOKUP(B11,'Check Sheet - After'!$B$5:$C$15, 2, FALSE)),"") -> 0
B12: =IF(ISERROR('Check Sheet - Before'!B12), "", IF(ISBLANK('Check Sheet - Before'!B12), "", 'Check Sheet - Before'!B12)) ->  | C12: =_xlfn.IFNA(IF(ISERROR('Check Sheet - Before'!C12), "", IF(ISBLANK('Check Sheet - Before'!C12), "", 'Check Sheet - Before'!C12)),"") -> 0 | D12: =_xlfn.IFNA(IF(ISERR(VLOOKUP(B12,'Check Sheet - After'!$B$5:$C$15, 2, FALSE)),,VLOOKUP(B12,'Check Sheet - After'!$B$5:$C$15, 2, FALSE)),"") -> 0
B13: =IF(ISERROR('Check Sheet - Before'!B13), "", IF(ISBLANK('Check Sheet - Before'!B13), "", 'Check Sheet - Before'!B13)) ->  | C13: =_xlfn.IFNA(IF(ISERROR('Check Sheet - Before'!C13), "", IF(ISBLANK('Check Sheet - Before'!C13), "", 'Check Sheet - Before'!C13)),"") -> 0 | D13: =_xlfn.IFNA(IF(ISERR(VLOOKUP(B13,'Check Sheet - After'!$B$5:$C$15, 2, FALSE)),,VLOOKUP(B13,'Check Sheet - After'!$B$5:$C$15, 2, FALSE)),"") -> 0
B14: =IF(ISERROR('Check Sheet - Before'!B14), "", IF(ISBLANK('Check Sheet - Before'!B14), "", 'Check Sheet - Before'!B14)) ->  | C14: =_xlfn.IFNA(IF(ISERROR('Check Sheet - Before'!C14), "", IF(ISBLANK('Check Sheet - Before'!C14), "", 'Check Sheet - Before'!C14)),"") -> 0 | D14: =_xlfn.IFNA(IF(ISERR(VLOOKUP(B14,'Check Sheet - After'!$B$5:$C$15, 2, FALSE)),,VLOOKUP(B14,'Check Sheet - After'!$B$5:$C$15, 2, FALSE)),"") -> 0
B15: =IF(ISERROR('Check Sheet - Before'!B15), "", IF(ISBLANK('Check Sheet - Before'!B15), "", 'Check Sheet - Before'!B15)) ->  | C15: =_xlfn.IFNA(IF(ISERROR('Check Sheet - Before'!C15), "", IF(ISBLANK('Check Sheet - Before'!C15), "", 'Check Sheet - Before'!C15)),"") -> 0 | D15: =_xlfn.IFNA(IF(ISERR(VLOOKUP(B15,'Check Sheet - After'!$B$5:$C$15, 2, FALSE)),,VLOOKUP(B15,'Check Sheet - After'!$B$5:$C$15, 2, FALSE)),"") -> 0

Sheet Before Example
B2: Errors on employee onboarding form | H2: =$B$2 -> Errors on employee onboarding form | M2: =$B$2 -> Errors on employee onboarding form
B4: Error Type | C4: Count | E4: % of Total | F4: Cumulative
B5: Invalid date format | C5: 17 | E5: =IF(SUM($C$5:$C$15)<1,0,C5/SUM($C$5:$C$15)) -> 0.2463768116 | F5: =IF(SUM($C$5:$C$15)<1,0,C5/SUM($C$5:$C$15)) -> 0.2463768116
B6: Did not receive forms | C6: 14 | E6: 0.2028985507 | F6: =SUM($E$5:E6) -> 0.4492753623
B7: Hand writing unreadable | C7: 9 | E7: 0.1304347826 | F7: =SUM($E$5:E7) -> 0.5797101449
B8: Forms were late | C8: 8 | E8: 0.115942029 | F8: =SUM($E$5:E8) -> 0.6956521739
B9: Invalid divers license | C9: 6 | E9: 0.08695652174 | F9: =SUM($E$5:E9) -> 0.7826086957
B10: No signature | C10: 4 | E10: 0.05797101449 | F10: =SUM($E$5:E10) -> 0.8405797101
B11: Used a pencil | C11: 4 | E11: 0.05797101449 | F11: =SUM($E$5:E11) -> 0.8985507246
B12: Missing back page | C12: 3 | E12: 0.04347826087 | F12: =SUM($E$5:E12) -> 0.9420289855
B13: No SSN | C13: 2 | E13: =IF(SUM($C$5:$C$15)<1,0,C13/SUM($C$5:$C$15)) -> 0.02898550725 | F13: =SUM($E$5:E13) -> 0.9710144928
B14: No name | C14: 1 | E14: 0.01449275362 | F14: =SUM($E$5:E14) -> 0.9855072464
B15: Invalid SSN | C15: 1 | E15: =IF(SUM($C$5:$C$15)<1,0,C15/SUM($C$5:$C$15)) -> 0.01449275362 | F15: =SUM($E$5:E15) -> 1

Sheet After Example
B2: ='Before Example'!B2:F2 -> Errors on employee onboarding form | H2: =B2 -> Errors on employee onboarding form | M2: =H2 -> Errors on employee onboarding form
B4: Error Type | C4: Count | E4: % of Total | F4: Cumulative
B5: Forms were late | C5: 5 | E5: =IF(SUM($C$5:$C$15)<1,0,C5/SUM($C$5:$C$15)) -> 0.3125 | F5: =IF(SUM($C$5:$C$15)<1,0,C5/SUM($C$5:$C$15)) -> 0.3125
B6: Did not receive forms | C6: 3 | E6: 0.1875 | F6: =SUM($E$5:E6) -> 0.5
B7: No signature | C7: 3 | E7: 0.1875 | F7: =SUM($E$5:E7) -> 0.6875
B8: No SSN | C8: 2 | E8: 0.125 | F8: =SUM($E$5:E8) -> 0.8125
B9: Invalid SSN | C9: 1 | E9: 0.0625 | F9: =SUM($E$5:E9) -> 0.875
B10: Invalid date format | C10: 1 | E10: 0.0625 | F10: =SUM($E$5:E10) -> 0.9375
B11: Invalid divers license | C11: 1 | E11: 0.0625 | F11: =SUM($E$5:E11) -> 1
B12: Hand writing unreadable | C12: 0 | E12: 0 | F12: =SUM($E$5:E12) -> 1
B13: Used a pencil | C13: 0 | E13: 0 | F13: =SUM($E$5:E13) -> 1
B14: No name | C14: 0 | E14: 0 | F14: =SUM($E$5:E14) -> 1
B15: Missing back page | C15: 0 | E15: 0 | F15: =SUM($E$5:E15) -> 1

Sheet Comparison Example
B2: ='Before Example'!B2:F2 -> Errors on employee onboarding form | H2: =B2 -> Errors on employee onboarding form
B4: Error Type | C4: Before | D4: After | E4: % Improvement
B5: Invalid date format | C5: 17 | D5: 1 | E5: =IFERROR((C5-D5)/C5,"") -> 0.9411764706
B6: Did not receive forms | C6: 14 | D6: 3 | E6: =IFERROR((C6-D6)/C6,"") -> 0.7857142857
B7: Hand writing unreadable | C7: 9 | D7: 0 | E7: =IFERROR((C7-D7)/C7,"") -> 1
B8: Forms were late | C8: 8 | D8: 5 | E8: 0.375
B9: Invalid divers license | C9: 6 | D9: 1 | E9: 0.8333333333
B10: No signature | C10: 4 | D10: 3 | E10: =IFERROR((C10-D10)/C10,"") -> 0.25
B11: Used a pencil | C11: 4 | D11: 0 | E11: =IFERROR((C11-D11)/C11,"") -> 1
B12: Missing back page | C12: 3 | D12: 0 | E12: 1
B13: No SSN | C13: 2 | D13: 2 | E13: 0
B14: No name | C14: 1 | D14: 0 | E14: 1
B15: Invalid SSN | C15: 1 | D15: 1 | E15: 0
